bitfinex/quotes_SOLUSD_20241223
["timestamp","ask_amount","ask_price","bid_price","bid_amount"]
[1734924853532,1.01481585,184.87,184.67,43.47576454]
[1734924853694,1.01481585,184.87,184.69,43.47576454]
[1734924853896,1.01451901,184.86,184.7,0.8116152]
[1734924854145,0.4773,184.88,184.7,0.8116152]
[1734924854332,0.12549,184.87,184.7,0.8116152]
[1734924854618,1.14007575,184.87,184.7,0.8116152]
[1734924855321,1.14007575,184.87,184.71,37.33457326]
[1734924855522,23.902374,184.93,184.72,0.8116321]
[1734924855720,23.902374,184.91,184.72,0.8116321]
[1734924855928,23.902374,184.89,184.67,37.33457326]
[1734924856099,23.902374,184.87,184.67,37.33457326]
[1734924856303,23.902374,184.85,184.68,0.8118028]
[1734924856646,0.12549,184.83,184.68,0.8118028]
[1734924856796,1.01473531,184.82,184.68,0.8118028]
[1734924857397,4.37008706,184.95,184.69,37.33457326]
[1734924857398,1.01472982,184.84,184.69,37.33457326]
[1734924857699,1.01455848,184.91,184.7,0.81164678]
[1734924858628,23.902374,184.9,184.7,0.81164678]
[1734924858806,0.12549,184.84,184.7,0.81164678]
[1734924859010,1.14003245,184.84,184.7,0.81164678]
[1734924859411,1.14003245,184.84,184.65,37.33457326]
[1734924859806,0.12549,184.82,184.65,37.33457326]
[1734924860122,0.12549,184.79,184.64,0.81173873]
[1734924860322,1.14043619,184.79,184.64,0.81173873]
[1734924861521,20.0,184.8,184.65,37.33457326]
[1734924861728,1.01474581,184.79,184.66,0.81179664]
[1734924862334,1.01477503,184.78,184.66,0.81179664]
[1734924862532,20.0,184.8,184.66,0.81179664]
[1734924862734,1.01484588,184.79,184.66,0.81179664]
[1734924862942,1.0147891,184.82,184.67,37.33457326]
[1734924863113,23.902374,184.84,184.68,0.81176208]
[1734924863312,0.12549,184.82,184.68,0.81176208]
[1734924863524,2.70795226,184.91,184.71,37.33457326]
[1734924863733,1.01438873,184.9,184.73,37.33457326]
[1734924863936,1.01438873,184.9,184.74,0.81139564]
[1734924864718,0.4773,184.91,184.74,0.81139564]
[1734924865106,0.12549,184.89,184.74,0.81139564]
[1734924865305,1.01429374,184.9,184.74,0.81139564]
[1734924865538,0.4773,184.91,184.75,37.33457326]
[1734924865722,0.4773,184.91,184.77,37.33457326]
[1734924866032,0.4773,184.91,184.78,0.81125041]
[1734924866233,1.01406642,184.96,184.79,37.33457326]
[1734924866437,1.01406642,184.96,184.8,0.81117774]
[1734924866623,0.12549,184.95,184.81,37.33457326]
[1734924866818,0.6777665,184.97,184.82,0.81114851]
[1734924867236,0.6777665,184.97,184.9,37.33457326]
[1734924867432,0.6777665,184.97,184.94,37.33457326]
[1734924867624,0.6777665,184.97,184.96,37.33457326]
[1734924870043,0.6777665,184.97,184.96,61.11145726]
[1734924871417,0.6777665,185.15,185.04,37.33457326]
[1734924871937,0.6777665,185.15,185.06,37.33457326]
[1734924872156,0.6777665,185.15,185.07,0.81009645]
[1734924873334,0.12549,185.14,185.02,37.33457326]
[1734924873619,0.6777665,185.15,185.04,37.33457326]
[1734924873937,0.12549,185.14,185.02,37.33457326]
[1734924874148,0.6777665,185.15,185.04,37.33457326]
[1734924874342,0.6777665,185.15,185.08,37.33457326]
[1734924874551,0.6777665,185.15,185.09,0.81007219]
[1734924875234,0.6777665,185.15,185.08,37.33457326]
[1734924875548,0.12549,185.14,185.02,37.33457326]
[1734924875750,0.12549,185.14,185.04,37.33457326]
[1734924876050,0.6777665,185.15,185.08,37.33457326]
[1734924876348,0.6777665,185.15,185.09,0.81009078]
[1734924877048,0.6777665,185.15,185.1,37.33457326]
[1734924877234,0.6777665,185.15,185.11,0.81002933]
[1734924877954,0.6777665,185.15,185.1,37.33457326]
[1734924877955,0.6777665,185.15,185.08,37.33457326]
[1734924878144,0.6777665,185.15,185.04,37.33457326]
[1734924878346,0.12549,185.14,185.02,37.33457326]
[1734924879220,0.12549,185.14,185.0,37.33457326]
[1734924880146,0.6777665,185.15,185.02,37.33457326]
[1734924880427,0.6777665,185.15,185.03,0.81031776]
[1734924880662,0.12549,185.14,185.04,37.33457326]
[1734924880947,0.12549,185.14,185.0,37.33457326]
[1734924881151,0.12549,185.1,184.96,37.33457326]
[1734924881449,1.13883842,185.1,184.96,37.33457326]
[1734924881760,0.12549,185.05,184.94,37.33457326]
[1734924881939,1.13891933,185.05,184.94,37.33457326]
[1734924882633,1.13891933,185.05,184.86,0.81075443]
[1734924882634,23.776884,185.04,184.9,37.33457326]
[1734924882835,1.01362807,185.03,184.88,37.33457326]
[1734924883030,23.776884,185.02,184.88,37.33457326]
[1734924883329,1.13925482,185.01,184.88,37.33457326]
[1734924883758,0.12549,185.06,184.88,37.33457326]
[1734924883968,0.12549,185.04,184.88,37.33457326]
[1734924884250,0.12549,185.04,184.83,1.8258]
[1734924884251,0.12549,185.01,184.9,37.33457326]
[1734924884450,20.0,185.02,184.91,0.81083792]
[1734924884758,20.0,185.02,184.92,37.33457326]
[1734924885574,1.01354953,185.01,184.9,37.33457326]
[1734924886344,0.12549,185.0,184.88,37.33457326]
[1734924886544,1.01377198,184.99,184.88,37.33457326]
[1734924887056,20.0,185.02,184.9,37.33457326]
[1734924887257,20.0,185.02,184.9,38.14539719]
[1734924888266,20.0,185.02,184.81,35.169216]
[1734924888267,20.0,185.02,184.92,37.33457326]
[1734924888445,20.0,184.94,184.71,6.1412]
[1734924888651,20.0,184.89,184.76,37.33457326]
[1734924888859,1.13993553,184.88,184.74,37.33457326]
[1734924889177,0.12549,184.86,184.7,37.33457326]
[1734924889352,0.12549,184.83,184.7,37.33457326]
[1734924889549,1.14014954,184.83,184.68,37.33457326]
[1734924889862,20.0,184.84,184.72,37.33457326]
[1734924890258,1.0145346,184.83,184.72,37.33457326]
[1734924890570,1.3778,184.86,184.73,0.81165676]
[1734924890745,0.12549,184.85,184.72,37.33457326]
[1734924890946,1.14011468,184.85,184.72,37.33457326]
[1734924891554,1.014602,184.97,184.76,37.33457326]
[1734924891759,0.12549,184.96,184.76,37.33457326]
[1734924891958,1.01432677,184.95,184.76,37.33457326]
[1734924892165,1.01432677,184.95,184.67,0.93695141]
[1734924892166,1.01432677,184.95,184.74,37.33457326]
[1734924892465,0.12549,184.94,184.74,37.33457326]
[1734924892776,3.52975222,184.99,184.74,37.33457326]
[1734924892777,0.12549,184.88,184.74,37.33457326]
[1734924892950,1.1399749,184.88,184.74,37.33457326]
[1734924893270,1.1399749,184.88,184.72,37.33457326]
[1734924893447,20.0,184.84,184.7,37.33457326]
[1734924893648,1.3778,184.86,184.74,37.33457326]
[1734924894266,20.0,184.93,184.76,37.33457326]
[1734924894474,1.01421528,184.95,184.8,37.33457326]
[1734924894644,1.3778,184.96,184.8,37.33457326]
[1734924895350,0.12549,184.95,184.8,37.33457326]
[1734924895543,1.01416662,184.95,184.8,37.33457326]
[1734924895864,1.01416662,184.95,184.78,37.33457326]
[1734924896170,1.01416662,184.95,184.71,20.0]
[1734924896171,1.01416662,184.95,184.8,37.33457326]
[1734924896469,0.12549,184.94,184.9,150.0]
[1734924896686,0.12549,184.92,184.9,148.6222]
[1734924897569,1.01407701,185.03,184.9,148.6222]
[1734924897745,1.01378945,185.13,184.9,148.6222]
[1734924898978,0.12549,185.12,184.9,148.6222]
[1734924899180,0.12549,185.1,184.9,148.6222]
[1734924899341,0.12549,185.08,184.9,148.6222]
[1734924899640,1.01372283,185.07,184.9,148.6222]
[1734924899839,1.01352882,185.06,184.9,148.6222]
[1734924900070,1.01378561,185.14,184.9,148.6222]
[1734924900558,1.01378561,185.14,184.91,37.33457326]
[1734924900870,1.01378561,185.14,184.91,0.81074654]
[1734924901075,0.12549,185.13,184.9,148.6222]
[1734924901276,0.12549,185.11,184.9,148.6222]
[1734924901577,0.12549,185.09,184.9,148.6222]
[1734924901870,0.12549,185.03,184.9,148.6222]
[1734924902068,20.0,184.94,184.9,148.6222]
[1734924902368,23.776884,184.99,184.9,148.6222]
[1734924902551,20.0,184.96,184.9,148.6222]
[1734924902757,0.12549,184.97,184.9,148.6222]
[1734924902975,1.13931317,184.97,184.9,148.6222]
[1734924903362,1.01382317,184.97,184.9,148.6222]
[1734924903559,1.01381208,185.06,184.9,148.6222]
[1734924903754,1.01357466,185.13,184.91,7.8402]
[1734924904071,1.01357466,185.13,184.91,45.98573456]
[1734924904246,1.01357466,185.13,184.93,37.33457326]
[1734924904445,1.01357466,185.13,184.94,0.8105793]
[1734924905076,1.01357466,185.13,184.95,37.33457326]
[1734924905367,1.01311579,185.12,184.93,37.33457326]
[1734924905558,1.01311579,185.12,184.94,0.81066274]
[1734924905756,0.12549,185.11,184.94,0.81066274]
[1734924905973,0.6777665,185.15,184.97,37.33457326]
[1734924906146,0.6777665,185.15,184.99,37.33457326]
[1734924906346,1.01284303,185.14,185.0,0.81027443]
[1734924906563,0.12549,185.13,184.98,0.81047513]
[1734924906762,0.12549,185.11,184.95,0.81047513]
[1734924906973,0.12549,185.09,184.93,0.81059898]
[1734924907154,0.12549,185.07,184.93,0.81059898]
[1734924907360,0.12549,185.05,184.93,0.81059898]
[1734924907768,0.12549,185.13,184.91,8.6509866]
[1734924907972,1.01348686,185.12,184.94,37.33457326]
[1734924908274,0.12549,185.11,184.94,0.81069074]
[1734924908470,0.12549,185.09,184.94,0.81069074]
[1734924908675,0.12549,185.07,184.94,0.81069074]
[1734924909078,0.12549,185.13,184.94,0.81069074]
[1734924909280,23.776884,185.11,184.94,0.81069074]
[1734924909486,0.6777665,185.15,184.99,37.33457326]
[1734924909657,0.6777665,185.15,185.0,0.81035096]
[1734924910486,0.12549,185.14,185.0,0.81035096]
[1734924910653,1.13846508,185.14,185.0,0.81035096]
[1734924911659,0.12549,185.12,185.0,0.81035096]
[1734924911870,1.01306095,185.11,185.0,0.81035096]
[1734924912075,0.6777665,185.15,185.0,0.81035096]
[1734924912995,0.6777665,185.15,185.01,37.33457326]
[1734924913189,0.12549,185.14,184.99,37.33457326]
[1734924913393,0.12549,185.14,185.01,0.81026739]
[1734924914296,0.12549,185.1,184.93,38.14490241]
[1734924914490,0.12549,185.06,184.93,0.81032915]
[1734924914800,1.13890633,185.06,184.93,0.81032915]
[1734924915172,20.0,185.11,184.95,37.33457326]
[1734924915496,20.0,185.11,184.97,37.33457326]
[1734924915693,0.6777665,185.15,184.98,0.8104227]
[1734924915898,0.12549,185.14,184.98,0.8104227]
[1734924916199,1.01302018,185.14,184.98,0.8104227]
[1734924916499,0.6777665,185.15,184.98,0.8104227]
[1734924916806,0.12549,185.1,184.95,37.33457326]
[1734924917005,0.12549,185.08,184.96,0.81060466]
[1734924917208,0.12549,185.05,184.92,0.81071361]
[1734924917420,24.91596775,185.05,184.91,8.651075]
[1734924917711,1.13908375,185.05,184.91,8.651075]
[1734924917890,1.01337328,185.05,184.91,45.98564826]
[1734924918091,23.776884,185.14,184.93,37.33457326]
[1734924918286,23.776884,185.14,184.95,37.33457326]
[1734924918611,23.776884,185.14,184.94,0.81055351]
[1734924918612,8.37981378,185.2,184.97,37.33457326]
[1734924918811,1.01306909,185.19,184.98,0.81045527]
[1734924919109,0.12549,185.13,184.93,37.33457326]
[1734924919312,0.12549,185.13,184.94,0.81067634]
[1734924919498,0.12549,185.14,184.94,0.81067634]
[1734924919697,0.12549,185.14,184.95,37.33457326]
[1734924919698,23.776884,185.13,184.95,37.33457326]
[1734924920014,1.01311024,185.22,184.97,37.33457326]
[1734924920309,1.01307357,185.21,185.01,37.33457326]
[1734924920522,1.01282706,185.2,185.02,0.81026165]
[1734924920698,1.01295073,185.19,185.02,0.81026165]
[1734924920898,1.01292753,185.18,185.02,0.81026165]
[1734924921402,1.01292753,185.18,185.03,37.33457326]
[1734924921705,1.01280241,185.23,185.07,37.33457326]
[1734924921894,1.01280241,185.23,185.08,0.81001726]
[1734924922215,1.01280241,185.23,185.05,0.81015979]
[1734924922417,1.01280241,185.23,185.06,37.33457326]
[1734924922714,2.2222797,185.24,185.07,0.81001359]
[1734924922909,1.01251177,185.23,185.07,0.81001359]
[1734924924207,2.2222797,185.24,185.13,26.0684]
[1734924924419,2.2222797,185.24,185.15,37.33457326]
[1734924924615,2.2222797,185.24,185.16,0.80961874]
[1734924924812,2.2222797,185.24,185.13,6.87817509]
[1734924925398,2.2222797,185.24,185.15,37.33457326]
[1734924925599,2.2222797,185.24,185.14,1.7624]
[1734924925830,2.2222797,185.24,185.13,6.0684]
[1734924926213,2.2222797,185.24,185.13,6.87819789]
[1734924927816,2.2222797,185.24,185.13,44.21277115]
[1734924927997,2.2222797,185.24,185.15,37.33457326]
[1734924928334,2.2222797,185.24,185.16,0.80963399]
[1734924928632,2.2222797,185.24,185.17,40.98237483]
[1734924928927,2.2222797,185.24,185.18,0.80946005]
[1734924929905,2.2222797,185.24,185.19,40.98237483]
[1734924930100,2.2222797,185.24,185.2,0.8094436]
[1734924930435,2.2222797,185.24,185.21,38.94853028]
[1734924930742,2.2222797,185.24,185.22,0.80934812]
[1734924931506,2.2222797,185.24,185.23,37.13663028]
[1734924932512,0.6777665,185.34,185.23,37.13663028]
[1734924932713,0.6777665,185.34,185.27,37.13663028]
[1734924933342,0.6777665,185.34,185.25,37.13663028]
[1734924934436,0.6777665,185.34,185.23,37.13663028]
[1734924934818,0.6777665,185.34,185.21,1.8119]
[1734924934819,23.902374,185.33,185.19,37.13663028]
[1734924935019,0.12549,185.29,185.14,1.782]
[1734924935336,23.776884,185.25,185.11,37.13663028]
[1734924935565,0.12549,185.23,185.11,37.13663028]
[1734924935839,2.899,185.31,185.09,37.13663028]
[1734924935840,0.12549,185.21,185.09,37.13663028]
[1734924936143,23.902374,185.29,185.09,37.13663028]
[1734924936318,20.0,185.26,185.13,37.13663028]
[1734924936522,1.0123837,185.25,185.13,37.13663028]
[1734924936716,0.12549,185.24,185.13,37.13663028]
[1734924937019,1.01233278,185.23,185.11,37.13663028]
[1734924937335,0.12549,185.22,185.09,37.13663028]
[1734924937539,0.12549,185.2,185.09,37.94672332]
[1734924937719,0.12549,185.2,185.07,38.91863028]
[1734924938939,1.01261327,185.25,185.11,37.13663028]
[1734924939119,0.12549,185.23,185.09,37.13663028]
[1734924939325,0.12549,185.21,185.09,37.13663028]
[1734924939531,21.13815075,185.21,185.09,37.13663028]
[1734924940839,21.13815075,185.21,185.07,39.72875888]
[1734924941152,23.776884,185.2,185.07,0.8101286]
[1734924941477,23.776884,185.2,184.96,6.1725]
[1734924941478,23.902374,185.08,184.96,37.13663028]
[1734924941636,0.12549,185.06,184.94,37.13663028]
[1734924941839,0.12549,185.04,184.92,37.13663028]
[1734924942031,1.13910778,185.04,184.9,185.75883028]
[1734924942575,0.12549,184.99,184.9,148.6222]
[1734924942770,1.13918145,184.99,184.9,148.6222]
[1734924942958,2.899,185.12,184.92,37.13663028]
[1734924943275,2.899,185.12,185.01,37.13663028]
[1734924943467,0.12549,185.19,185.01,37.13663028]
[1734924943768,0.12549,185.19,184.9,148.6222]
[1734924943769,1.01296856,185.19,185.03,37.13663028]
[1734924944057,1.01296856,185.19,185.0,37.13663028]
[1734924944250,1.01296856,185.19,185.02,37.13663028]
[1734924944451,0.12549,185.18,185.02,37.94688442]
[1734924944666,0.12549,185.16,185.02,37.94688442]
[1734924944868,1.01282113,185.15,185.02,37.94688442]
[1734924945032,1.01284737,185.19,185.02,37.13663028]
[1734924945359,1.01283903,185.24,185.04,37.13663028]
[1734924945541,0.12549,185.23,185.04,37.13663028]
[1734924945736,0.12549,185.21,185.04,37.13663028]
[1734924945938,0.12549,185.19,185.03,0.81027123]
[1734924946134,0.12549,185.19,185.0,37.13663028]
[1734924946436,0.12549,185.22,184.98,37.13663028]
[1734924946635,3.02449,185.24,184.97,8.234]
[1734924946636,23.902374,185.16,184.97,8.234]
[1734924946843,23.776884,185.12,184.97,8.234]
[1734924947053,23.776884,185.12,184.97,2.6657746]
[1734924947054,20.0,185.09,184.97,2.6657746]
[1734924947255,1.01321825,185.11,184.97,2.6657746]
[1734924947564,0.12549,185.1,184.97,2.6657746]
[1734924948239,1.01309077,185.23,185.02,37.13663028]
[1734924948453,1.01309077,185.23,185.03,0.81016603]
[1734924949250,0.12549,185.21,185.03,0.81016603]
[1734924949454,0.12549,185.19,185.0,37.13663028]
[1734924950238,1.01288987,185.28,185.0,41.0492056]
[1734924950239,23.902374,185.25,185.0,41.0492056]
[1734924950464,23.902374,185.21,185.0,41.0492056]
[1734924950646,5.10551009,185.29,184.98,41.0492056]
[1734924950647,0.12549,185.13,184.98,41.0492056]
[1734924950959,1.13850358,185.13,184.99,0.81041086]
[1734924952353,8.36075796,185.31,185.02,41.0492056]
[1734924952354,8.36075796,185.29,185.02,41.0492056]
[1734924952562,8.36075796,185.29,185.0,0.81042714]
[1734924952563,1.01283899,185.28,185.0,41.85963274]
[1734924952853,3.02449,185.27,185.0,41.85963274]
[1734924953065,0.12549,185.25,185.0,41.85963274]
[1734924953271,0.12549,185.23,185.0,41.85963274]
[1734924953564,23.902374,185.21,185.0,41.85963274]
[1734924953778,0.12549,185.13,185.0,41.85963274]
[1734924953947,1.01296935,185.24,185.04,41.0492056]
[1734924954142,1.01296935,185.24,185.02,41.85941244]
[1734924954356,1.01273467,185.28,185.04,41.0492056]
[1734924954559,1.01273467,185.28,185.05,0.81010595]
[1734924955578,1.01273467,185.28,185.06,6.1557]
[1734924955959,0.12549,185.27,185.05,0.81010595]
[1734924956168,0.12549,185.25,185.05,0.81010595]
[1734924956368,0.12549,185.23,185.05,0.81010595]
[1734924956563,0.12549,185.17,185.05,0.81010595]
[1734924956777,1.13828251,185.17,185.03,0.81023401]
[1734924957883,20.0,185.18,185.04,41.0492056]
[1734924958067,0.12549,185.19,185.05,0.81009167]
[1734924958382,23.776884,185.28,185.08,41.0492056]
[1734924958583,1.01249143,185.27,185.1,41.0492056]
[1734924958880,1.01249143,185.27,185.05,0.8098392]
[1734924959080,1.01249143,185.27,185.01,1.7582]
[1734924959081,3.02449,185.26,185.02,41.0492056]
[1734924959281,0.12549,185.24,185.02,41.0492056]
[1734924959482,2.899,185.26,185.02,41.0492056]
[1734924959483,0.12549,185.22,185.02,41.0492056]
[1734924959675,0.12549,185.2,185.02,41.0492056]
[1734924959979,23.902374,185.14,185.0,41.0492056]
[1734924960164,23.902374,185.14,184.97,0.81033836]
[1734924960165,0.12549,185.12,184.98,41.0492056]
[1734924960365,0.12549,185.12,184.99,0.81047702]
[1734924960692,8.36075796,185.27,185.04,41.0492056]
[1734924960865,20.0,185.22,185.05,0.81017354]
[1734924961066,1.01267958,185.21,185.05,0.81017354]
[1734924961387,0.12549,185.2,185.05,0.81017354]
[1734924961568,0.12549,185.18,185.05,0.81017354]
[1734924961879,1.01270769,185.21,185.05,0.81017354]
[1734924962280,1.01270769,185.21,185.0,0.81013706]
[1734924962480,3.02449,185.2,184.96,41.85947194]
[1734924962790,20.12549,185.18,184.94,41.0492056]
[1734924962986,0.12549,185.16,184.94,41.0492056]
[1734924963288,20.0,185.07,184.94,41.0492056]
[1734924963491,0.12549,185.05,184.92,41.0492056]
[1734924963679,3.91242271,185.2,184.98,41.0492056]
[1734924964290,20.0,185.13,185.0,41.0492056]
[1734924964462,1.01295903,185.12,185.01,0.81036722]
[1734924964661,0.12549,185.12,185.01,0.81036722]
[1734924964858,1.01294262,185.18,185.04,41.0492056]
[1734924965068,1.01294262,185.18,185.06,41.0492056]
[1734924965270,2.899,185.2,185.07,0.81005622]
[1734924965612,2.899,185.2,185.08,41.0492056]
[1734924965770,2.899,185.2,185.09,0.8099707]
[1734924966683,1.01249846,185.23,185.09,0.8099707]
[1734924967009,8.36075796,185.27,185.18,41.0492056]
[1734924967167,8.36075796,185.27,185.19,0.80958477]
[1734924967366,1.01196811,185.29,185.19,0.80958477]
[1734924967569,0.12549,185.32,185.16,41.0492056]
[1734924967873,0.12549,185.32,185.17,0.80969053]
[1734924968094,0.12549,185.3,185.17,0.80969053]
[1734924968295,1.01209357,185.3,185.17,0.80969053]
[1734924968504,0.12549,185.29,185.17,0.80969053]
[1734924968670,1.01209357,185.3,185.17,0.80969053]
[1734924969009,1.68984674,185.34,185.18,41.0492056]
[1734924969208,1.68984674,185.34,185.19,0.80957802]
[1734924969406,0.12549,185.33,185.19,0.80957802]
[1734924969611,0.12549,185.31,185.19,0.80957802]
[1734924969913,1.0119823,185.33,185.2,41.0492056]
[1734924970216,0.6777665,185.34,185.21,0.80943996]
[1734924970888,0.6777665,185.34,185.26,41.0492056]
[1734924971120,0.6777665,185.34,185.27,0.80917495]
[1734924972591,0.6777665,185.34,185.28,41.0492056]
[1734924972899,0.6777665,185.34,185.29,0.80915487]
[1734924973130,0.6777665,185.34,185.24,41.0492056]
[1734924973286,0.6777665,185.34,185.13,50.74938293]
[1734924973287,0.6777665,185.34,185.29,41.0492056]
[1734924973610,0.6777665,185.34,185.33,41.0492056]
[1734924973818,0.6777665,185.34,185.33,41.85816425]
[1734924974030,8.36075796,185.47,185.33,41.85816425]
[1734924974308,8.36075796,185.47,185.38,41.0492056]
[1734924974810,9.37156117,185.47,185.38,41.0492056]
[1734924974991,8.36075796,185.47,185.36,41.0492056]
[1734924975198,1.01104819,185.49,185.37,0.80882573]
[1734924975386,0.6777665,185.52,185.37,0.80882573]
[1734924975588,0.12549,185.5,185.37,0.80882573]
[1734924975790,0.12549,185.48,185.37,0.80882573]
[1734924976111,1.01108665,185.48,185.34,41.0492056]
[1734924976412,0.12549,185.47,185.32,41.0492056]
[1734924976585,4.61518665,185.48,185.32,41.0492056]
[1734924976586,0.12549,185.45,185.33,0.80910681]
[1734924976786,1.01131041,185.44,185.33,0.80910681]
[1734924976988,0.6777665,185.52,185.34,41.0492056]
[1734924977188,1.01127862,185.51,185.34,41.0492056]
[1734924978318,0.12549,185.5,185.35,37.90213287]
[1734924978488,1.01110402,185.49,185.35,37.90213287]
[1734924978683,0.12549,185.48,185.35,37.90213287]
[1734924978913,0.12549,185.46,185.35,37.90213287]
[1734924979129,1.0111239,185.51,185.37,37.09309274]
[1734924979292,1.01082562,185.51,185.38,0.8086605]
[1734924979490,1.01082562,185.51,185.37,37.09309274]
[1734924980629,0.12549,185.5,185.35,37.09309274]
[1734924980797,0.12549,185.48,185.36,0.80890659]
[1734924981120,0.12549,185.46,185.29,0.80891094]
[1734924981414,0.12549,185.44,185.29,0.80891094]
[1734924981617,0.12549,185.42,185.29,0.80891094]
[1734924981815,0.21624889,185.39,185.26,37.09309274]
[1734924981989,25.00486094,185.39,185.26,37.09309274]
[1734924982391,0.12549,185.35,185.24,37.09309274]
[1734924982594,1.13725538,185.35,185.24,37.09309274]
[1734924982898,0.12549,185.3,185.18,37.09309274]
[1734924983111,0.12549,185.3,185.2,37.09309274]
[1734924983315,23.86764289,185.39,185.23,37.09309274]
[1734924983493,20.0,185.36,185.23,37.09309274]
[1734924983695,20.12549,185.34,185.23,37.09309274]
[1734924983929,0.12549,185.32,185.23,37.09309274]
[1734924984135,1.01187002,185.38,185.25,37.09309274]
[1734924984294,0.09075889,185.39,185.23,37.09309274]
[1734924984510,0.12549,185.37,185.21,37.09309274]
[1734924984708,1.13736709,185.37,185.21,37.09309274]
[1734924984907,1.13736709,185.37,185.23,37.09309274]
[1734924985124,1.13736709,185.37,185.18,37.09309274]
[1734924985516,0.12549,185.28,185.16,37.09309274]
[1734924985735,1.13770212,185.28,185.17,0.8097697]
[1734924986036,1.13756736,185.28,185.17,0.8097697]
[1734924986410,0.12549,185.26,185.14,37.09309274]
[1734924986611,1.13777466,185.26,185.14,37.09309274]
[1734924986811,0.12549,185.24,185.12,37.09309274]
[1734924987117,0.12549,185.24,185.08,1.7811]
[1734924987118,23.902374,185.21,185.08,37.09309274]
[1734924987327,1.01263744,185.2,185.05,0.8099202]
[1734924987630,1.01255914,185.32,185.14,37.09309274]
[1734924987937,0.12549,185.31,185.15,0.80987474]
[1734924988112,0.12549,185.29,185.15,0.80987474]
[1734924988313,0.12549,185.27,185.15,0.80987474]
[1734924988521,0.12549,185.25,185.15,0.80987474]
[1734924988834,1.01222291,185.32,185.15,0.80987474]
[1734924989041,1.01222291,185.32,185.18,37.09309274]
[1734924989222,1.01222291,185.32,185.19,0.80956863]
[1734924989613,3.606,185.38,185.19,0.80956863]
[1734924989815,1.01199938,185.37,185.16,37.09309274]
[1734924990016,0.12549,185.36,185.17,0.80966417]
[1734924990230,1.01208958,185.35,185.17,0.80966417]
[1734924990632,0.12549,185.34,185.18,37.09309274]
[1734924990832,0.12549,185.34,185.19,0.80953942]
[1734924991138,23.902374,185.3,185.16,37.09309274]
[1734924991353,23.902374,185.3,185.17,0.80975819]
[1734924991354,23.902374,185.28,185.17,0.80975819]
[1734924991523,23.902374,185.24,185.08,37.09309274]
[1734924991731,0.12549,185.22,185.1,37.09309274]
[1734924991931,0.12549,185.22,185.11,0.8098788]
[1734924992132,0.12549,185.19,185.08,37.09309274]
[1734924992327,20.0,185.2,185.09,0.8100787]
[1734924992523,2.899,185.38,185.12,37.09309274]
[1734924992853,1.01229958,185.37,185.13,0.80983966]
[1734924993057,0.12549,185.36,185.13,0.80983966]
[1734924993223,0.12549,185.34,185.13,0.80983966]
[1734924993544,0.12549,185.32,185.13,0.80982529]
[1734924993849,1.0122633,185.31,185.13,0.80982529]
[1734924994045,0.12549,185.3,185.13,0.80982529]
[1734924994347,0.12549,185.2,185.11,0.80988779]
[1734924994658,1.01261281,185.41,185.12,37.90318299]
[1734924994822,298.46698315,185.42,185.14,37.09309274]
[1734924994823,20.0,185.29,185.14,37.09309274]
[1734924995022,0.12549,185.23,185.12,37.09309274]
[1734924995223,1.1378642,185.23,185.13,0.80989936]
[1734924995430,0.12549,185.23,185.13,0.80989936]
[1734924996264,0.12549,185.23,185.14,0.80984956]
[1734924996549,1.13780131,185.23,185.11,0.80984905]
[1734924996719,3.606,185.4,185.14,37.09309274]
[1734924996925,3.32980704,185.39,185.16,37.09309274]
[1734924997145,1.10291164,185.39,185.17,0.8096261]
[1734924997966,0.12549,185.38,185.17,0.8096261]
[1734924998174,1.0121433,185.37,185.17,0.8096261]
[1734924998820,0.12549,185.36,185.18,40.98490335]
[1734924999054,0.12549,185.34,185.17,0.80952762]
[1734924999224,0.12549,185.32,185.17,0.80952762]
[1734924999643,0.12549,185.27,185.17,0.80952762]
[1734924999976,0.09075889,185.39,185.23,40.98490335]
[1734925000148,1.10243528,185.39,185.24,0.80934111]
[1734925000447,0.12549,185.38,185.24,0.80934111]
[1734925000652,0.12549,185.36,185.24,0.80934111]
[1734925000875,1.01163364,185.37,185.24,0.80934111]
[1734925001696,0.12549,185.35,185.21,40.98490335]
[1734925001992,0.12549,185.33,185.22,0.80948373]
[1734925002288,0.09075889,185.39,185.19,40.98490335]
[1734925002289,0.12549,185.38,185.19,40.98490335]
[1734925002471,0.12549,185.34,185.18,0.80949948]
[1734925002678,0.12549,185.29,185.18,0.80949948]
[1734925003287,23.902374,185.33,185.18,0.80949948]
[1734925003470,0.12549,185.29,185.18,0.48541948]
[1734925003655,0.12549,185.29,185.12,6.1189]
[1734925003656,1.13757282,185.29,185.15,40.98490335]
[1734925003858,1.13771164,185.29,185.16,0.62872722]
[1734925004375,3.02449,185.27,185.13,41.61332849]